bitfinex/quotes_SOLUSD_20241028
["timestamp","ask_amount","ask_price","bid_price","bid_amount"]
[1730129289176,70.0,174.26,174.24,11.38861006]
[1730129289586,70.0,174.26,174.23,11.38861006]
[1730129289875,70.0,174.26,174.24,11.38861006]
[1730129290369,70.0,174.26,174.23,11.38861006]
[1730129290577,70.0,174.25,174.17,20.1]
[1730129290877,70.0,174.25,174.23,11.38861006]
[1730129291788,70.0,174.27,174.24,11.38861006]
[1730129291958,70.0,174.27,174.25,11.38861006]
[1730129293765,70.0,174.27,174.24,11.38861006]
[1730129294582,70.0,174.27,174.25,11.38861006]
[1730129296378,21.6802,174.3,174.26,11.38861006]
[1730129296379,70.0,174.29,174.26,11.38861006]
[1730129296685,70.0,174.33,174.28,11.38861006]
[1730129296855,21.8707,174.34,174.32,11.38861006]
[1730129297183,70.0,174.35,174.33,11.38861006]
[1730129298259,70.0,174.35,174.32,11.38861006]
[1730129299376,70.0,174.32,174.26,0.86098686]
[1730129299585,70.0,174.32,174.3,11.38861006]
[1730129299778,70.0,174.32,174.26,0.86098686]
[1730129299779,70.0,174.32,174.29,11.38861006]
[1730129300780,70.0,174.32,174.3,11.38861006]
[1730129301164,70.0,174.34,174.31,11.38861006]
[1730129301479,70.0,174.34,174.33,11.38861006]
[1730129303380,70.0,174.34,174.32,11.38861006]
[1730129305882,70.0,174.34,174.33,11.38861006]
[1730129306270,70.0,174.37,174.33,11.38861006]
[1730129306588,70.0,174.37,174.36,11.38861006]
[1730129306765,70.0,174.37,174.34,11.38861006]
[1730129306972,70.0,174.35,174.34,11.38861006]
[1730129307786,91.9781,174.38,174.34,11.38861006]
[1730129307969,70.0,174.38,174.36,11.38861006]
[1730129308883,70.0,174.38,174.34,11.38861006]
[1730129309272,70.0,174.34,174.29,0.86081633]
[1730129309490,70.0,174.34,174.3,11.38861006]
[1730129309790,70.0,174.34,174.31,11.38861006]
[1730129314090,70.0,174.34,174.3,11.38861006]
[1730129314389,70.0,174.34,174.31,11.38861006]
[1730129314880,70.0,174.34,174.3,11.38861006]
[1730129316890,70.0,174.32,174.29,12.24942639]
[1730129317067,70.0,174.32,174.29,0.86081633]
[1730129317274,70.0,174.3,174.29,0.86081633]
[1730129318069,70.0,174.3,174.1,28.61622487]
[1730129318070,70.0,174.3,174.25,11.38861006]
[1730129318671,70.0,174.3,174.26,11.38861006]
[1730129319591,70.0,174.3,174.27,11.38861006]
[1730129319789,70.0,174.3,174.2,6.07390767]
[1730129319790,70.0,174.32,174.29,11.38861006]
[1730129319978,70.0,174.32,174.3,11.38861006]
[1730129320491,70.0,174.34,174.3,11.38861006]
[1730129320796,92.936,174.36,174.32,11.38861006]
[1730129321282,70.0,174.34,174.32,11.38861006]
[1730129321675,92.936,174.36,174.32,11.38861006]
[1730129322485,92.936,174.36,174.33,11.38861006]
[1730129323072,98.6713,174.36,174.31,11.38861006]
[1730129324596,92.936,174.36,174.32,11.38861006]
[1730129325310,70.0,174.38,174.34,11.38861006]
[1730129325971,70.0,174.38,174.33,11.38861006]
[1730129326580,70.0,174.38,174.35,11.38861006]
[1730129326991,70.0,174.38,174.34,11.38861006]
[1730129327394,70.0,174.38,174.35,11.38861006]
[1730129327575,70.0,174.38,174.36,11.38861006]
[1730129328379,70.0,174.38,174.35,11.38861006]
[1730129329582,70.0,174.38,174.36,11.38861006]
[1730129333780,70.0,174.38,174.35,11.38861006]
[1730129334086,70.0,174.38,174.36,11.38861006]
[1730129334313,70.0,174.38,174.37,11.38861006]
[1730129334484,70.0,174.38,174.36,11.38861006]
[1730129336317,70.0,174.38,174.37,11.38861006]
[1730129336502,21.8268,174.41,174.37,11.38861006]
[1730129336705,15.6294,174.41,174.39,11.38861006]
[1730129337109,0.5946434,174.43,174.4,11.38861006]
[1730129337304,0.5946434,174.43,174.41,11.38861006]
[1730129338011,0.5946434,174.43,174.42,11.38861006]
[1730129341204,0.5946434,174.43,174.39,0.86031965]
[1730129341409,0.5946434,174.43,174.41,11.38861006]
[1730129341686,17.71615346,174.43,174.39,0.86031965]
[1730129342114,6.3275434,174.43,174.39,0.86031965]
[1730129343214,81.38861006,174.42,174.39,0.86031965]
[1730129343603,70.0,174.4,174.36,20.0]
[1730129343929,70.0,174.4,174.36,31.38861006]
[1730129344412,75.7339,174.4,174.36,31.38861006]
[1730129344716,75.7339,174.4,174.36,17.78296372]
[1730129345105,75.7339,174.4,174.35,17.78296372]
[1730129345704,70.0,174.36,174.28,12.7708]
[1730129345907,70.0,174.36,174.32,17.78296372]
[1730129346209,87.78296372,174.38,174.33,17.78296372]
[1730129346401,93.51756372,174.38,174.33,17.78296372]
[1730129346606,75.7346,174.38,174.34,17.78296372]
[1730129346802,21.7348,174.42,174.35,17.78296372]
[1730129346803,93.51696372,174.4,174.35,17.78296372]
[1730129347000,75.734,174.4,174.36,17.78296372]
[1730129347914,70.0,174.4,174.37,17.78296372]
[1730129348115,97.4681,174.42,174.37,17.78296372]
[1730129348305,97.4681,174.42,174.38,17.78296372]
[1730129348822,91.7348,174.42,174.38,17.78296372]
[1730129349124,97.4681,174.42,174.38,17.78296372]
[1730129352201,97.4681,174.42,174.32,0.8607076]
[1730129352202,70.0,174.38,174.34,17.78296372]
[1730129352521,87.78296372,174.36,174.32,0.8607076]
[1730129352899,0.5946434,174.43,174.35,21.80986372]
[1730129353099,0.5946434,174.43,174.35,4.1269]
[1730129353512,0.5946434,174.43,174.42,17.78296372]
[1730129357932,0.5946434,174.43,174.42,17.78296372]
[1730129362031,0.5946434,174.43,174.39,0.86035153]
[1730129362333,0.5946434,174.43,174.42,17.78296372]
[1730129365628,0.5946434,174.43,174.42,35.56592744]
[1730129366435,0.5946434,174.43,174.42,56.83616935]
[1730129369416,0.5946434,174.43,174.42,11.36723387]
[1730129372011,93.776884,174.42,174.28,0.2]
[1730129372333,70.0,174.38,174.34,11.36723387]
[1730129372541,70.0,174.38,174.36,11.36723387]
[1730129372709,70.0,174.38,174.35,10.86723387]
[1730129373425,70.0,174.38,174.36,11.36723387]
[1730129373622,70.0,174.38,174.37,11.36723387]
[1730129373819,70.0,174.4,174.37,11.36723387]
[1730129374025,70.0,174.4,174.38,11.36723387]
[1730129374434,70.0,174.4,174.38,17.77939719]
[1730129374937,70.0,174.4,174.39,17.77939719]
[1730129375140,29.4153434,174.43,174.39,17.77939719]
[1730129375141,70.0,174.42,174.39,17.77939719]
[1730129375724,70.0,174.42,174.38,17.77939719]
[1730129379138,11.13447346,198.39,174.42,20.0]
[1730129379139,70.0,174.5,174.42,20.0]
[1730129379355,70.0,174.5,174.49,17.77939719]
[1730129379541,100.0,174.5,174.49,17.77939719]
[1730129380122,70.0,174.5,174.49,17.77939719]
[1730129380322,70.0,174.5,174.48,17.77939719]
[1730129380835,70.0,174.5,174.49,17.77939719]
[1730129381041,70.0,174.52,174.49,17.77939719]
[1730129381250,70.0,174.54,174.51,17.77939719]
[1730129381419,70.0,174.5,174.48,17.77939719]
[1730129383548,70.0,174.5,174.42,37.77939719]
[1730129383549,70.0,174.5,174.49,17.77939719]
[1730129386950,70.0,174.52,174.49,17.77939719]
[1730129387151,70.0,174.52,174.5,17.77939719]
[1730129388551,70.0,174.54,174.51,17.77939719]
[1730129388753,70.0,174.54,174.52,17.77939719]
[1730129391461,70.0,174.54,174.5,17.77939719]
[1730129391750,70.0,174.52,174.5,17.77939719]
[1730129394957,70.0,174.52,174.51,17.77939719]
[1730129395662,70.0,174.54,174.51,17.77939719]
[1730129395841,70.0,174.54,174.53,17.77939719]
[1730129396437,70.0,174.53,174.51,17.77939719]
[1730129397661,70.0,174.53,174.52,17.77939719]
[1730129398559,70.0,174.53,174.51,11.36147023]
[1730129400053,70.0,174.51,174.44,20.86012298]
[1730129400262,70.0,174.51,174.5,11.36147023]
[1730129401063,70.0,174.51,174.44,0.86012298]
[1730129401064,70.0,174.49,174.44,0.86012298]
[1730129401233,70.0,174.49,174.47,11.36147023]
[1730129401438,70.0,174.49,174.48,11.36147023]
[1730129402355,70.0,174.48,174.4,20.0]
[1730129402556,70.0,174.48,174.47,11.36147023]
[1730129408847,70.0,174.46,174.39,20.0]
[1730129409166,70.0,174.42,174.41,11.36147023]
[1730129409460,70.0,174.42,174.34,12.7708]
[1730129409657,70.0,174.42,174.4,11.36147023]
[1730129411364,70.0,174.42,174.41,11.36147023]
[1730129412175,70.0,174.44,174.41,11.36147023]
[1730129412373,70.0,174.47,174.43,11.36147023]
[1730129412663,70.0,174.47,174.46,11.36147023]
[1730129412858,100.0,174.47,174.46,11.36147023]
[1730129414065,70.0,174.47,174.46,11.36147023]
[1730129414443,70.0,174.47,174.46,17.75780677]
[1730129416860,70.0,174.47,174.45,17.75780677]
[1730129418667,70.0,174.47,174.46,17.75780677]
[1730129418961,70.0,174.47,174.45,17.75780677]
[1730129420176,70.0,174.51,174.46,17.75780677]
[1730129420355,70.0,174.51,174.49,17.75780677]
[1730129420664,70.0,174.49,174.47,17.75780677]
[1730129420869,70.0,174.47,174.45,17.75780677]
[1730129421050,70.0,174.47,174.46,17.75780677]
[1730129422179,70.0,174.49,174.46,17.75780677]
[1730129422475,70.0,174.49,174.47,17.75780677]
[1730129422778,70.0,174.49,174.48,17.75780677]
[1730129423357,70.0,174.49,174.47,17.75780677]
[1730129423759,70.0,174.49,174.48,17.75780677]
[1730129423965,70.0,174.49,174.47,17.75780677]
[1730129424856,70.0,174.47,174.43,17.75780677]
[1730129425262,70.0,174.45,174.41,17.75780677]
[1730129425883,70.0,174.43,174.4,17.75780677]
[1730129426179,70.0,174.43,174.41,17.75780677]
[1730129426759,6.0147,174.46,174.42,17.75780677]
[1730129426968,70.0,174.49,174.45,17.75780677]
[1730129427273,70.0,174.49,174.46,17.75780677]
[1730129427458,70.0,174.49,174.48,17.75780677]
[1730129428062,85.4867,174.51,174.48,17.75780677]
[1730129428258,85.4867,174.51,174.49,17.75780677]
[1730129428476,85.4867,174.51,174.5,17.75780677]
[1730129428784,85.4867,174.51,174.48,17.75780677]
[1730129429366,70.0,174.49,174.42,0.86024033]
[1730129429568,70.0,174.49,174.47,17.75780677]
[1730129430383,70.0,174.47,174.44,17.75780677]
[1730129430689,70.0,174.47,174.46,17.75780677]
[1730129431062,70.0,174.49,174.46,17.75780677]
[1730129432187,70.0,174.49,174.48,17.75780677]
[1730129432681,70.0,174.52,174.48,17.75780677]
[1730129432862,70.0,174.52,174.5,17.75780677]
[1730129434960,70.0,174.52,174.51,17.75780677]
[1730129435158,70.0,174.55,174.51,17.75780677]
[1730129435378,86.0805,174.56,174.54,17.75780677]
[1730129435571,16.0805,174.56,174.54,17.75780677]
[1730129436686,21.8092,174.56,174.53,17.75780677]
[1730129436869,16.0805,174.56,174.53,17.75780677]
[1730129437184,70.0,174.53,174.51,17.75780677]
[1730129437375,70.0,174.53,174.5,17.75780677]
[1730129440073,70.0,174.53,174.52,17.75780677]
[1730129440274,6.217,174.58,174.52,17.75780677]
[1730129440467,70.0,174.56,174.55,17.75780677]
[1730129441166,70.0,174.58,174.55,17.75780677]
[1730129441368,70.0,174.58,174.57,17.75780677]
[1730129441581,70.0,174.57,174.55,17.75780677]
[1730129442379,70.0,174.57,174.56,17.75780677]
[1730129442785,70.0,174.59,174.56,17.75780677]
[1730129445393,70.0,174.59,174.57,17.75780677]
[1730129445773,70.0,174.59,174.56,17.75780677]
[1730129446272,70.0,174.57,174.55,17.75780677]
[1730129446593,70.0,174.57,174.54,17.75780677]
[1730129446801,70.0,174.54,174.5,0.82944015]
[1730129446965,70.0,174.54,174.5,18.58724692]
[1730129447400,70.0,174.54,174.51,17.75780677]
[1730129447889,70.0,174.54,174.5,18.58724692]
[1730129448071,70.0,174.52,174.5,0.82944015]
[1730129448269,70.0,174.52,174.5,18.58724692]
[1730129449172,70.0,174.52,174.51,17.75780677]
[1730129449501,76.0987,174.56,174.51,17.75780677]
[1730129449701,81.8274,174.56,174.53,17.75780677]
[1730129450299,81.8274,174.56,174.52,17.75780677]
[1730129450495,81.8274,174.56,174.51,17.75780677]
[1730129451795,81.8274,174.56,174.52,17.75780677]
[1730129453198,76.0987,174.56,174.53,17.75780677]
[1730129453710,76.0987,174.56,174.52,17.75780677]
[1730129453912,76.0987,174.56,174.53,17.75780677]
[1730129454199,76.0987,174.56,174.52,17.75780677]
[1730129455408,81.8274,174.56,174.51,17.75780677]
[1730129458175,81.8274,174.56,174.52,17.75780677]
[1730129458400,81.8274,174.56,174.53,17.75780677]
[1730129459183,76.0987,174.56,174.53,17.75780677]
[1730129461575,70.0,174.58,174.55,17.75780677]
[1730129461797,70.0,174.58,174.51,17.75780677]
[1730129461998,86.0718434,174.6,174.57,17.75780677]
[1730129462173,30.0,174.58,174.57,17.75780677]
[1730129462373,86.0718434,174.6,174.56,17.75780677]
[1730129463601,86.0718434,174.6,174.57,17.75780677]
[1730129464675,70.5946434,174.6,174.58,17.75780677]
[1730129465486,0.5946434,174.6,174.59,17.75780677]
[1730129466486,0.5946434,174.6,174.59,37.75780677]
[1730129468278,0.5946434,174.6,174.59,55.51561354]
[1730129470997,76.1045,174.7,174.68,17.75780677]
[1730129472207,86.0072,174.73,174.69,17.75780677]
[1730129472511,86.0072,174.73,174.7,17.75780677]
[1730129472693,6.0214,174.76,174.72,17.75780677]
[1730129472896,6.0214,174.76,174.75,17.75780677]
[1730129473089,36.0214,174.76,174.75,17.75780677]
[1730129473288,6.0214,174.76,174.75,17.75780677]
[1730129473611,70.5946434,174.78,174.75,17.75780677]
[1730129474109,70.0,174.75,174.73,17.75780677]
[1730129474305,70.0,174.75,174.71,17.75780677]
[1730129475009,70.0,174.73,174.69,17.75780677]
[1730129475194,70.0,174.71,174.68,0.81073952]
[1730129475513,70.0,174.71,174.68,18.56854629]
[1730129476793,70.0,174.71,174.66,17.75780677]
[1730129477184,70.0,174.71,174.67,17.75780677]
[1730129477810,70.0,174.71,174.68,17.75780677]
[1730129478301,70.0,174.75,174.7,17.75780677]
[1730129478500,75.7225,174.75,174.72,17.75780677]
[1730129478907,75.7225,174.75,174.71,17.75780677]
[1730129479099,70.0,174.75,174.71,17.75780677]
[1730129479495,22.8883,174.76,174.73,17.75780677]
[1730129479701,70.0,174.75,174.73,17.75780677]
[1730129480411,22.8883,174.76,174.74,17.75780677]
[1730129480595,0.5946434,174.78,174.75,17.75780677]
[1730129480794,0.5946434,174.78,174.77,17.75780677]
[1730129480995,0.5946434,174.78,174.76,17.75780677]
[1730129481206,0.5946434,174.78,174.77,17.75780677]
[1730129489234,0.5946434,174.78,174.76,17.75780677]
[1730129489432,70.0,174.75,174.72,0.82552617]
[1730129489732,70.0,174.71,174.67,17.75780677]
[1730129490536,70.0,174.71,174.69,17.75780677]
[1730129490733,70.0,174.71,174.68,17.75780677]
[1730129490930,70.0,174.71,174.67,17.75780677]
[1730129491100,70.0,174.71,174.68,17.75780677]
[1730129492016,75.7238,174.71,174.67,17.75780677]
[1730129492432,70.0,174.69,174.66,0.82580014]
[1730129492641,70.0,174.65,174.6,17.75780677]
[1730129492819,70.0,174.63,174.59,17.75780677]
[1730129493135,70.0,174.61,174.57,17.75780677]
[1730129493316,70.0,174.61,174.58,17.75780677]
[1730129494641,70.0,174.61,174.57,18.58405855]
[1730129496028,70.0,174.61,174.58,17.75780677]
[1730129496221,70.0,174.75,174.64,23.976884]
[1730129496421,70.0,174.75,174.74,17.75780677]
[1730129496726,70.0,174.75,174.69,17.75780677]
[1730129496727,100.0,174.75,174.72,17.75780677]
[1730129497235,70.0,174.73,174.69,17.75780677]
[1730129497435,70.0,174.71,174.68,17.75780677]
[1730129497934,70.0,174.71,174.69,17.75780677]
[1730129498533,70.0,174.71,174.69,28.34420459]
[1730129499914,28.34420459,174.75,174.7,28.34420459]
[1730129499915,70.0,174.75,174.7,28.34420459]
[1730129500112,70.0,174.75,174.74,28.34420459]
[1730129500327,70.0,174.77,174.74,28.34420459]
[1730129500525,70.0,174.77,174.75,28.34420459]
[1730129500725,0.5946434,174.78,174.75,28.34420459]
[1730129501439,0.5946434,174.78,174.77,28.34420459]
[1730129503018,0.5946434,174.78,174.76,28.34420459]
[1730129503926,70.0,174.77,174.74,28.34420459]
[1730129504109,70.0,174.77,174.72,28.34420459]
[1730129504933,70.0,174.77,174.74,28.34420459]
[1730129505116,70.0,174.77,174.75,28.34420459]
[1730129505425,70.0,174.77,174.74,28.34420459]
[1730129505916,70.0,174.77,174.69,29.16989807]
[1730129505917,70.0,174.74,174.7,28.34420459]
[1730129506116,70.0,174.74,174.69,0.82569348]
[1730129506117,70.0,174.74,174.69,29.16989807]
[1730129506317,70.0,174.72,174.69,0.82569348]
[1730129506527,70.0,174.72,174.69,29.16989807]
[1730129507321,76.0944,174.74,174.7,28.34420459]
[1730129507842,76.0944,174.74,174.69,29.16989807]
[1730129508640,70.0,174.72,174.69,29.16989807]
[1730129510620,70.0,174.72,174.69,0.82569348]
[1730129511344,70.0,174.72,174.67,28.34420459]
[1730129511642,76.0944,174.74,174.71,28.34420459]
[1730129512346,76.0944,174.74,174.7,28.34420459]
[1730129512922,6.0944,174.74,174.71,28.34420459]
[1730129513240,16.5576,174.75,174.73,28.34420459]
[1730129513636,16.5576,174.75,174.72,28.34420459]
[1730129514249,16.5576,174.75,174.73,28.34420459]
[1730129515726,70.0,174.76,174.73,28.34420459]
[1730129516739,70.0,174.76,174.72,28.34420459]
[1730129517351,70.0,174.76,174.73,28.34420459]
[1730129517840,77.1439434,174.78,174.75,28.34420459]
[1730129518434,77.1439434,174.78,174.75,17.70165555]
[1730129518951,77.1439434,174.78,174.76,17.70165555]
[1730129519443,70.5946434,174.78,174.76,17.70165555]
[1730129520025,0.5946434,174.78,174.76,17.70165555]
[1730129520245,0.5946434,174.78,174.77,17.70165555]
[1730129523348,70.5946434,174.78,174.74,17.70165555]
[1730129524053,70.0,174.76,174.71,18.50164197]
[1730129524955,70.0,174.73,174.71,0.79998642]
[1730129525934,86.2214,174.73,174.71,0.79998642]
[1730129527445,70.0,174.71,174.7,20.0]
[1730129527745,111.47853955,174.71,174.7,20.0]
[1730129528255,117.20223955,174.71,174.7,20.0]
[1730129528647,70.0,174.64,174.61,0.80048139]
[1730129529049,70.0,174.64,174.61,18.50213694]
[1730129529735,70.0,174.64,174.62,17.70165555]
[1730129530859,70.0,174.64,174.6,17.70165555]
[1730129531162,70.0,174.64,174.57,0.80066725]
[1730129531359,70.0,174.64,174.6,17.70165555]
[1730129532337,70.0,174.64,174.59,17.70165555]
[1730129532740,70.0,174.64,174.6,17.70165555]
[1730129533961,70.0,174.66,174.61,17.70165555]
[1730129534259,70.0,174.66,174.63,17.70165555]
[1730129534763,70.0,174.7,174.65,17.70165555]
[1730129534937,70.0,174.7,174.68,17.70165555]
[1730129535142,70.0,174.72,174.69,17.70165555]
[1730129535346,6.4164,174.74,174.71,17.70165555]
[1730129535549,30.0,174.72,174.71,17.70165555]
[1730129535851,70.0,174.72,174.7,17.70165555]
[1730129536264,70.0,174.72,174.63,16.83737786]
[1730129536265,70.0,174.7,174.65,17.70165555]
[1730129536558,70.0,174.68,174.65,28.3587649]
[1730129537838,70.0,174.68,174.66,28.3587649]
[1730129538040,70.0,174.7,174.67,28.3587649]
[1730129538262,70.0,174.7,174.68,28.3587649]
[1730129538447,70.0,174.7,174.69,28.3587649]
[1730129539563,70.0,174.68,174.63,20.79517786]
[1730129539771,70.0,174.64,174.63,20.0]
[1730129539960,104.8230649,174.64,174.63,20.0]
[1730129540265,128.5999489,174.64,174.63,20.0]
[1730129540465,128.5999489,174.64,174.47,0.1]
[1730129540466,70.0,174.59,174.47,0.1]
[1730129540766,70.0,174.55,174.51,28.3587649]
[1730129540968,70.0,174.55,174.47,5.97165046]
[1730129541264,70.0,174.55,174.51,28.3587649]
[1730129541474,70.0,174.59,174.54,28.3587649]
[1730129541641,70.0,174.59,174.47,0.99588704]
[1730129541642,70.0,174.61,174.58,28.3587649]
[1730129541972,70.0,174.61,174.51,0.2]
[1730129542173,70.0,174.61,174.6,28.3587649]
[1730129542473,70.0,174.61,174.59,28.3587649]
[1730129543571,70.0,174.63,174.59,28.3587649]
[1730129543871,70.0,174.63,174.6,28.3587649]
[1730129544167,70.0,174.61,174.6,28.3587649]
[1730129544967,70.0,174.61,174.59,28.3587649]
[1730129545474,70.0,174.61,174.6,28.3587649]
[1730129546049,70.0,174.61,174.59,28.3587649]
[1730129546347,70.0,174.61,174.6,28.3587649]
[1730129546553,70.0,174.65,174.6,28.3587649]
[1730129546772,70.0,174.67,174.64,28.3587649]
[1730129546984,70.0,174.67,174.66,28.3587649]
[1730129547677,70.0,174.67,174.65,28.3587649]
[1730129548251,70.0,174.67,174.64,28.3587649]
[1730129548570,70.0,174.67,174.65,28.3587649]
[1730129549367,6.1528,174.69,174.6,28.3587649]
[1730129549368,70.0,174.69,174.66,28.3587649]
[1730129549753,70.0,174.69,174.67,28.3587649]
[1730129551162,70.0,174.66,174.59,20.79535888]
[1730129551366,70.0,174.64,174.62,28.3587649]
[1730129551673,70.0,174.64,174.6,28.3587649]
[1730129551966,70.0,174.62,174.59,49.15412378]
[1730129552173,70.0,174.62,174.6,28.3587649]
[1730129552372,70.0,174.62,174.61,28.3587649]
[1730129552687,70.0,174.64,174.61,28.3587649]
[1730129553061,70.0,174.66,174.63,28.3587649]
[1730129553386,70.0,174.66,174.65,28.3587649]
[1730129553756,70.0,174.68,174.65,28.3587649]
[1730129553962,70.0,174.7,174.67,28.3587649]
[1730129554166,70.0,174.68,174.6,28.4587649]
[1730129554467,70.0,174.68,174.67,28.3587649]
[1730129556553,70.0,174.64,174.61,0.79527839]
[1730129556782,70.0,174.64,174.6,28.3587649]
[1730129556987,70.0,174.64,174.62,28.3587649]
[1730129557174,70.0,174.64,174.63,28.3587649]
[1730129557490,70.0,174.64,174.59,20.0]
[1730129557858,70.0,174.64,174.63,28.3587649]
[1730129558271,70.0,174.62,174.6,28.3587649]
[1730129558988,70.0,174.62,174.61,28.3587649]
[1730129559163,70.0,174.64,174.61,28.3587649]
[1730129559364,70.0,174.64,174.63,28.3587649]
[1730129559780,70.0,174.66,174.63,28.3587649]
[1730129560089,70.0,174.68,174.65,28.3587649]
[1730129560300,70.0,174.68,174.66,28.3587649]
[1730129560959,70.0,174.68,174.67,28.3587649]
[1730129561365,70.0,174.68,174.66,28.3587649]
[1730129562185,70.0,174.68,174.67,28.3587649]
[1730129562382,70.0,174.68,174.65,28.3587649]
[1730129562964,70.0,174.68,174.66,28.3587649]
[1730129563782,70.0,174.66,174.65,28.3587649]
[1730129563972,70.0,174.66,174.64,28.3587649]
[1730129564589,70.0,174.64,174.62,28.3587649]
[1730129564969,70.0,174.64,174.63,28.3587649]
[1730129565290,70.0,174.69,174.63,28.3587649]
[1730129565470,70.0,174.66,174.61,0.81517499]
[1730129565670,70.0,174.66,174.65,28.3587649]
[1730129565873,70.0,174.66,174.64,28.3587649]
[1730129566393,70.0,174.66,174.65,28.3587649]
[1730129567389,70.0,174.66,174.64,28.3587649]
[1730129567580,70.0,174.66,174.63,28.3587649]
[1730129568385,70.0,174.66,174.61,0.81517499]
[1730129568588,70.0,174.66,174.64,28.3587649]
[1730129571578,70.0,174.68,174.65,28.3587649]
[1730129571781,70.0,174.68,174.66,28.3587649]
[1730129572295,70.0,174.68,174.67,28.3587649]
[1730129572993,35.8787,174.74,174.67,28.3587649]
[1730129572994,70.0,174.72,174.67,28.3587649]
[1730129573174,70.0,174.7,174.69,28.3587649]
[1730129574711,70.0,174.74,174.69,56.7175298]
[1730129574999,0.5946434,174.78,174.74,20.0]
[1730129575199,0.5946434,174.78,174.7,21.408]
[1730129575200,70.5946434,174.78,174.77,28.3587649]
[1730129575878,70.5946434,174.78,174.76,28.3587649]
[1730129576300,70.0,174.76,174.72,28.3587649]
[1730129577192,70.0,174.74,174.71,28.3587649]
[1730129578302,70.0,174.74,174.72,28.3587649]
[1730129579289,70.0,174.74,174.71,28.3587649]
[1730129580715,70.0,174.74,174.67,20.0]
[1730129580716,70.0,174.7,174.67,28.3587649]
[1730129580881,70.0,174.68,174.62,22.2755]
[1730129581079,0.1,174.76,174.67,28.3587649]
[1730129581080,70.0,174.7,174.67,28.3587649]
[1730129581291,70.0,174.7,174.68,28.3587649]
[1730129581513,70.0,174.7,174.67,28.3587649]
[1730129582209,70.0,174.68,174.65,28.3587649]
[1730129582393,70.0,174.66,174.63,28.3587649]
[1730129582580,70.0,174.66,174.65,28.3587649]
[1730129583817,70.0,174.69,174.65,28.3587649]
[1730129584104,70.0,174.71,174.68,28.3587649]
[1730129584299,70.0,174.73,174.7,28.3587649]
[1730129584517,70.0,174.75,174.72,28.3587649]
[1730129584809,70.0,174.77,174.74,28.3587649]
[1730129585378,70.0,174.77,174.75,28.3587649]
[1730129586018,70.0,174.77,174.74,28.3587649]
[1730129586892,70.0,174.75,174.72,28.3587649]
[1730129587109,70.0,174.73,174.7,28.3587649]
[1730129587698,70.0,174.73,174.71,28.3587649]
[1730129587905,70.0,174.73,174.7,28.3587649]
[1730129588229,70.0,174.75,174.72,28.3587649]
[1730129588449,70.0,174.75,174.74,28.3587649]
[1730129588629,70.0,174.75,174.73,28.3587649]
[1730129589146,70.0,174.73,174.72,28.3587649]
[1730129589729,70.0,174.75,174.72,28.3587649]
[1730129589951,70.0,174.75,174.73,28.3587649]
[1730129590337,70.0,174.75,174.74,28.3587649]
[1730129590555,70.0,174.77,174.74,28.3587649]
[1730129590855,70.0,174.77,174.75,28.3587649]
[1730129591041,70.0,174.77,174.69,28.3587649]
[1730129591042,70.0,174.77,174.74,28.3587649]
[1730129591236,70.0,174.75,174.73,28.3587649]
[1730129591436,70.0,174.75,174.68,0.83690994]
[1730129591437,70.0,174.73,174.71,28.3587649]
[1730129591659,70.0,174.73,174.7,28.3587649]
[1730129591950,70.0,174.71,174.69,28.3587649]
[1730129592138,70.0,174.71,174.68,29.19567484]
[1730129592333,70.0,174.71,174.67,28.3587649]
[1730129592655,70.0,174.68,174.64,28.3587649]
[1730129592850,70.0,174.68,174.65,28.3587649]
[1730129593052,70.0,174.68,174.66,28.3587649]
[1730129593730,70.0,174.66,174.65,28.3587649]